fUST/lending_fUST_20250811
["ID","MTS","AMOUNT","RATE_DAILY","PERIOD"]
[378479744,1754881839510,-460.0,0.00020229,2]
[378479746,1754881839520,-460.0,0.00020229,2]
[378479748,1754881839532,-1794.97,0.00020229,2]
[378479750,1754881839542,-1687.53,0.00020229,2]
[378479751,1754881839551,-460.0,0.00020229,2]
[378479754,1754881839560,-1896.5,0.00020229,2]
[378479755,1754881839570,-519.64,0.00020229,2]
[378479758,1754881839579,-472.04483016,0.00020229,2]
[378479759,1754881839589,-1876.17,0.00020229,2]
[378479761,1754881839600,-460.0,0.00020229,2]
[378479763,1754881839609,-460.0,0.00020229,2]
[378479765,1754881839619,-553.4,0.00020229,2]
[378479767,1754881839629,-460.0,0.00020229,2]
[378479769,1754881839638,-460.0,0.00020229,2]
[378479771,1754881839647,-460.0,0.00020229,2]
[378479773,1754881839657,-494.42,0.00020229,2]
[378479775,1754881839667,-460.0,0.00020229,2]
[378479777,1754881839676,-538.23,0.00020229,2]
[378479779,1754881839686,-460.0,0.00020229,2]
[378479781,1754881839695,-460.0,0.00020229,2]
[378479783,1754881839705,-460.0,0.00020229,2]
[378479785,1754881839714,-460.0,0.00020229,2]
[378479787,1754881839724,-460.0,0.00020229,2]
[378479789,1754881839733,-1238.3,0.00020229,2]
[378479791,1754881839742,-933.05,0.00020229,2]
[378479793,1754881839751,-460.0,0.00020229,2]
[378479795,1754881839760,-1354.91,0.0002023,2]
[378479797,1754881839769,-752.06,0.0002023,2]
[378479799,1754881839778,-460.0,0.0002023,2]
[378479801,1754881839786,-460.0,0.0002023,2]
[378479803,1754881839795,-1674.58,0.0002023,2]
[378479805,1754881839804,-1819.13,0.0002023,2]
[378479807,1754881839814,-200.0,0.00020352,15]
[378479809,1754881839823,-200.0,0.00020352,15]
[378479811,1754881839834,-200.0,0.00020352,15]
[378479813,1754881839843,-200.0,0.00020352,15]
[378479815,1754881839853,-200.0,0.00020352,15]
[378479817,1754881839864,-460.0,0.00020501,2]
[378479819,1754881839873,-460.0,0.00020501,2]
[378479821,1754881839883,-460.0,0.00020501,2]
[378479823,1754881839893,-460.0,0.00020501,2]
[378479825,1754881839902,-460.0,0.00020501,2]
[378479827,1754881839911,-384.25,0.00020501,2]
[378479829,1754881839921,-758.29,0.00020501,2]
[378479831,1754881839932,-460.0,0.00020501,2]
[378479833,1754881839941,-460.0,0.00020501,2]
[378479835,1754881839951,-460.0,0.00020501,2]
[378479837,1754881839960,-935.8,0.00020501,2]
[378479839,1754881839970,-460.0,0.00020501,2]
[378479841,1754881839981,-460.0,0.00020501,2]
[378479843,1754881839991,-937.38,0.00020501,2]
[378479845,1754881840000,-460.0,0.00020501,2]
[378479847,1754881840009,-460.0,0.00020501,2]
[378479849,1754881840019,-460.0,0.00020501,2]
[378479851,1754881840028,-559.56,0.00020501,2]
[378479853,1754881840038,-460.0,0.00020501,2]
[378479854,1754881840047,-460.0,0.00020501,2]
[378479856,1754881840057,-460.0,0.00020501,2]
[378479858,1754881840066,-198.2227594,0.00020501,2]
[378479861,1754881840076,-2894.8,0.00020501,2]
[378479862,1754881840085,-744.32,0.00020502,2]
[378479864,1754881840095,-460.0,0.00020502,2]
[378479865,1754881840105,-460.0,0.00020502,2]
[378479866,1754881840115,-460.0,0.00020502,2]
[378479867,1754881840124,-1002.6,0.00020502,2]
[378479868,1754881840134,-1751.23,0.00020502,2]
[378479869,1754881840143,-779.44,0.00020502,2]
[378479870,1754881840152,-460.0,0.00020503,2]
[378479871,1754881840162,-460.0,0.00020503,2]
[378479872,1754881840172,-460.0,0.00020503,2]
[378479873,1754881840183,-2521.29,0.00020503,2]
[378479874,1754881840199,-760.0,0.00020503,2]
[378479875,1754881840213,-592.78,0.00020503,2]
[378479876,1754881840223,-460.0,0.00020503,2]
[378479877,1754881840233,-460.0,0.00020503,2]
[378479878,1754881840243,-1794.97,0.00020503,2]
[378479879,1754881840252,-1687.53,0.00020503,2]
[378479880,1754881840262,-460.0,0.00020503,2]
[378479881,1754881840272,-1896.5,0.00020503,2]
[378479882,1754881840287,-519.64,0.00020503,2]
[378479883,1754881840297,-1876.17,0.00020503,2]
[378479884,1754881840307,-460.0,0.00020503,2]
[378479885,1754881840316,-460.0,0.00020503,2]
[378479886,1754881840326,-553.4,0.00020503,2]
[378479887,1754881840336,-460.0,0.00020503,2]
[378479888,1754881840345,-460.0,0.00020503,2]
[378479889,1754881840355,-460.0,0.00020503,2]
[378479890,1754881840365,-494.42,0.00020503,2]
[378479891,1754881840374,-248.58749328,0.00020503,2]
[378479892,1754881840383,-538.23,0.00020503,2]
[378479893,1754881840391,-460.0,0.00020503,2]
[378479894,1754881840400,-460.0,0.00020503,2]
[378479895,1754881840409,-460.0,0.00020503,2]
[378479896,1754881840419,-460.0,0.00020503,2]
[378479897,1754881840429,-460.0,0.00020503,2]
[378479898,1754881840438,-1238.3,0.00020503,2]
[378479899,1754881840447,-933.05,0.00020503,2]
[378479900,1754881840457,-452.90458117,0.00020503,2]
[378479901,1754881840467,-1354.91,0.00020504,2]
[378479902,1754881840478,-752.06,0.00020504,2]
[378479903,1754881840488,-460.0,0.00020504,2]
[378479904,1754881840497,-460.0,0.00020504,2]
[378479905,1754881840506,-1674.58,0.00020504,2]
[378479906,1754881840515,-1819.13,0.00020504,2]
[378479907,1754881840525,-216.61,0.00020666,3]
[378479908,1754881840534,-649.85,0.00020666,3]
[378479909,1754881840544,-1120.83178056,0.00020676,2]
[378479910,1754881840553,-892.03,0.00020755,3]
[378479911,1754881840563,-297.34,0.00020757,3]
[378479912,1754881840572,-679.63,0.00020765,3]
[378479913,1754881840581,-339.81,0.00020765,3]
[378479916,1754881840740,-169.91,0.00020765,3]
[378479918,1754881840750,-509.73,0.00020765,3]
[378479920,1754881840760,-594.67,0.00020765,3]
[378479921,1754881840770,-187.03,0.00020767,3]
[378479922,1754881840780,-561.1,0.00020767,3]
[378479924,1754881840789,-460.0,0.00020775,2]
[378479925,1754881840799,-460.0,0.00020775,2]
[378479926,1754881840809,-332.64594257,0.00020775,2]
[378479927,1754881840819,-460.0,0.00020775,2]
[378479928,1754881840829,-264.72087868,0.00020775,2]
[378479930,1754881840839,-758.29,0.00020775,2]
[378479932,1754881840851,-460.0,0.00020775,2]
[378479934,1754881840860,-510.62542039,0.00020775,2]
[378479935,1754881840870,-460.0,0.00020775,2]
[378479936,1754881840881,-935.8,0.00020775,2]
[378479937,1754881840891,-460.0,0.00020775,2]
[378479938,1754881840902,-460.0,0.00020775,2]
[378479939,1754881840911,-937.38,0.00020775,2]
[378479940,1754881840920,-460.0,0.00020775,2]
[378479941,1754881840931,-460.0,0.00020775,2]
[378479942,1754881840941,-460.0,0.00020775,2]
[378479943,1754881840951,-559.56,0.00020775,2]
[378479944,1754881840961,-460.0,0.00020775,2]
[378479945,1754881840971,-293.446137,0.00020775,2]
[378479946,1754881840982,-516.10692092,0.00020775,2]
[378479947,1754881840992,-2894.8,0.00020775,2]
[378479948,1754881841002,-744.32,0.00020776,2]
[378479949,1754881841012,-460.0,0.00020776,2]
[378479950,1754881841022,-460.0,0.00020776,2]
[378479951,1754881841033,-460.0,0.00020776,2]
[378479952,1754881841042,-1002.6,0.00020776,2]
[378479953,1754881841052,-1751.23,0.00020776,2]
[378479954,1754881841062,-779.44,0.00020776,2]
[378479955,1754881841072,-581.912064,0.00020777,2]
[378479956,1754881841081,-460.0,0.00020777,2]
[378479957,1754881841091,-460.0,0.00020777,2]
[378479958,1754881841101,-2521.29,0.00020777,2]
[378479959,1754881841111,-760.0,0.00020777,2]
[378479960,1754881841122,-592.78,0.00020777,2]
[378479961,1754881841132,-460.0,0.00020777,2]
[378479962,1754881841141,-460.0,0.00020777,2]
[378479963,1754881841151,-1794.97,0.00020777,2]
[378479964,1754881841161,-1687.53,0.00020777,2]
[378479965,1754881841170,-460.0,0.00020777,2]
[378479966,1754881841179,-1896.5,0.00020777,2]
[378479967,1754881841190,-519.64,0.00020777,2]
[378479968,1754881841200,-1876.17,0.00020777,2]
[378479969,1754881841209,-460.0,0.00020777,2]
[378479970,1754881841218,-460.0,0.00020777,2]
[378479971,1754881841229,-553.4,0.00020777,2]
[378479972,1754881841239,-460.0,0.00020777,2]
[378479973,1754881841248,-460.0,0.00020777,2]
[378479974,1754881841258,-460.0,0.00020777,2]
[378479975,1754881841270,-494.42,0.00020777,2]
[378479976,1754881841280,-538.23,0.00020777,2]
[378479977,1754881841290,-460.0,0.00020777,2]
[378479978,1754881841299,-460.0,0.00020777,2]
[378479979,1754881841309,-460.0,0.00020777,2]
[378479980,1754881841318,-460.0,0.00020777,2]
[378479981,1754881841328,-460.0,0.00020777,2]
[378479982,1754881841338,-1238.3,0.00020777,2]
[378479983,1754881841348,-933.05,0.00020777,2]
[378479984,1754881841358,-1354.91,0.00020778,2]
[378479985,1754881841368,-752.06,0.00020778,2]
[378479986,1754881841377,-460.0,0.00020778,2]
[378479987,1754881841387,-460.0,0.00020778,2]
[378479988,1754881841397,-1674.58,0.00020778,2]
[378479989,1754881841406,-1819.13,0.00020778,2]
[378479990,1754881841415,-500.0,0.00020986,2]
[378479991,1754881841424,-500.0,0.00020986,2]
[378479992,1754881841433,-563.15294988,0.00020986,2]
[378479993,1754881841443,-500.81682096,0.00021003,2]
[378479994,1754881841453,-500.0,0.0002101,2]
[378479995,1754881841462,-221.70338505,0.00021015,2]
[378479996,1754881841472,-500.0,0.00021015,2]
[378479997,1754881841482,-500.0,0.00021015,2]
[378479998,1754881841491,-500.0,0.00021015,2]
[378479999,1754881841501,-500.0,0.00021034,2]
[378480000,1754881841510,-460.0,0.00021049,2]
[378480001,1754881841520,-460.0,0.00021049,2]
[378480002,1754881841529,-460.0,0.00021049,2]
[378480003,1754881841539,-758.29,0.00021049,2]
[378480004,1754881841548,-460.0,0.00021049,2]
[378480005,1754881841558,-460.0,0.00021049,2]
[378480006,1754881841567,-935.8,0.00021049,2]
[378480007,1754881841577,-336.64404498,0.00021049,2]
[378480008,1754881841586,-460.0,0.00021049,2]
[378480009,1754881841596,-937.38,0.00021049,2]
[378480010,1754881841605,-460.0,0.00021049,2]
[378480011,1754881841615,-460.0,0.00021049,2]
[378480012,1754881841624,-460.0,0.00021049,2]
[378480013,1754881841633,-559.56,0.00021049,2]
[378480014,1754881841643,-460.0,0.00021049,2]
[378480015,1754881841652,-2894.8,0.00021049,2]
[378480016,1754881841661,-501.33316,0.0002105,2]
[378480017,1754881841670,-501.96065926,0.0002105,2]
[378480018,1754881841679,-502.03749927,0.0002105,2]
[378480019,1754881841689,-744.32,0.0002105,2]
[378480020,1754881841698,-460.0,0.0002105,2]
[378480021,1754881841708,-460.0,0.0002105,2]
[378480022,1754881841718,-460.0,0.0002105,2]
[378480023,1754881841728,-1002.6,0.0002105,2]
[378480024,1754881841738,-1751.23,0.0002105,2]
[378480025,1754881841747,-779.44,0.0002105,2]
[378480026,1754881841757,-460.0,0.00021051,2]
[378480027,1754881841766,-460.0,0.00021051,2]
[378480028,1754881841775,-760.0,0.00021051,2]
[378480029,1754881841785,-2521.29,0.00021051,2]
[378480030,1754881841794,-592.78,0.00021051,2]
[378480031,1754881841803,-460.0,0.00021051,2]
[378480032,1754881841813,-460.0,0.00021051,2]
[378480033,1754881841822,-1794.97,0.00021051,2]
[378480034,1754881841831,-1687.53,0.00021051,2]
[378480035,1754881841841,-460.0,0.00021051,2]
[378480036,1754881841851,-1896.5,0.00021051,2]
[378480037,1754881841861,-519.64,0.00021051,2]
[378480038,1754881841870,-1876.17,0.00021051,2]
[378480039,1754881841880,-460.0,0.00021051,2]
[378480040,1754881841890,-460.0,0.00021051,2]
[378480041,1754881841900,-553.4,0.00021051,2]
[378480042,1754881841909,-460.0,0.00021051,2]
[378480043,1754881841919,-460.0,0.00021051,2]
[378480044,1754881841928,-460.0,0.00021051,2]
[378480045,1754881841938,-494.42,0.00021051,2]
[378480046,1754881841948,-538.23,0.00021051,2]
[378480047,1754881841958,-460.0,0.00021051,2]
[378480048,1754881841968,-460.0,0.00021051,2]
[378480049,1754881841979,-460.0,0.00021051,2]
[378480050,1754881841988,-460.0,0.00021051,2]
[378480051,1754881841998,-460.0,0.00021051,2]
[378480052,1754881842010,-1238.3,0.00021051,2]
[378480053,1754881842019,-933.05,0.00021051,2]
[378480054,1754881842028,-373.23,0.00021051,2]
[378480055,1754881842038,-1354.91,0.00021052,2]
[378480056,1754881842048,-752.06,0.00021052,2]
[378480057,1754881842058,-460.0,0.00021052,2]
[378480058,1754881842067,-460.0,0.00021052,2]
[378480059,1754881842077,-1674.58,0.00021052,2]
[378480060,1754881842087,-1819.13,0.00021052,2]
[378480061,1754881842096,-501.14541372,0.00021112,2]
[378480062,1754881842105,-500.0,0.00021112,2]
[378480063,1754881842114,-160.0,0.00021133,2]
[378480064,1754881842124,-160.0,0.00021133,2]
[378480065,1754881842133,-160.0,0.00021133,2]
[378480066,1754881842143,-216.68257536,0.00021133,2]
[378480067,1754881842152,-215.4905783,0.00021133,2]
[378480068,1754881842162,-231.9940742,0.00021133,2]
[378480069,1754881842171,-843.18994796,0.00021133,2]
[378480070,1754881842181,-461.69158338,0.00021133,2]
[378480071,1754881842191,-160.0,0.00021133,2]
[378480072,1754881842204,-312.16666667,0.00021133,2]
[378480073,1754881842213,-160.0,0.00021133,2]
[378480074,1754881842225,-527.9539256,0.00021133,2]
[378480075,1754881842236,-12671.21867243,0.00021133,2]
[378480076,1754881842246,-160.0,0.00021135,2]
[378480077,1754881842256,-518.2521788,0.00021143,2]
[378480078,1754881842265,-500.0,0.00021143,2]
[378480079,1754881842276,-500.0,0.00021147,2]
[378480080,1754881842286,-160.0,0.00021235,2]
[378480081,1754881842295,-460.0,0.00021323,2]
[378480082,1754881842305,-176.2,0.00021323,2]
[378480083,1754881842314,-460.0,0.00021323,2]
[378480084,1754881842324,-758.29,0.00021323,2]
[378480085,1754881842334,-460.0,0.00021323,2]
[378480086,1754881842344,-460.0,0.00021323,2]
[378480087,1754881842353,-935.8,0.00021323,2]
[378480088,1754881842363,-460.0,0.00021323,2]
[378480089,1754881842372,-937.38,0.00021323,2]
[378480090,1754881842382,-460.0,0.00021323,2]
[378480091,1754881842391,-391.8637527,0.00021323,2]
[378480092,1754881842401,-460.0,0.00021323,2]
[378480093,1754881842411,-559.56,0.00021323,2]
[378480094,1754881842421,-460.0,0.00021323,2]
[378480095,1754881842430,-744.32,0.00021324,2]
[378480096,1754881842439,-250.84106829,0.00021324,2]
[378480097,1754881842449,-285.24,0.00021324,2]
[378480098,1754881842458,-460.0,0.00021324,2]
[378480099,1754881842468,-1002.6,0.00021324,2]
[378480100,1754881842478,-1751.23,0.00021324,2]
[378480101,1754881842487,-779.44,0.00021324,2]
[378480102,1754881842497,-422.38437841,0.00021324,2]
[378480103,1754881842506,-1634.20816073,0.00021324,2]
[378480104,1754881842515,-1634.20816073,0.00021324,2]
[378480105,1754881842525,-1634.20816073,0.00021324,2]
[378480106,1754881842534,-1634.20816073,0.00021324,2]
[378480108,1754881842543,-1634.20816073,0.00021324,2]
[378480110,1754881842552,-1634.20816073,0.00021324,2]
[378480112,1754881842561,-1634.20816073,0.00021324,2]
[378480115,1754881842570,-1634.20816073,0.00021324,2]
[378480117,1754881842580,-1634.20816073,0.00021324,2]
[378480119,1754881842589,-1634.20816073,0.00021324,2]
[378480121,1754881842598,-1634.20816073,0.00021324,2]
[378480123,1754881842608,-1634.20816073,0.00021324,2]
[378480125,1754881842617,-1634.20816073,0.00021324,2]
[378480128,1754881842626,-1634.20816073,0.00021324,2]
[378480130,1754881842636,-1634.20816073,0.00021324,2]
[378480132,1754881842645,-1634.20816073,0.00021324,2]
[378480135,1754881842654,-460.0,0.00021325,2]
[378480137,1754881842664,-460.0,0.00021325,2]
[378480139,1754881842674,-760.0,0.00021325,2]
[378480143,1754881842683,-2521.29,0.00021325,2]
[378480146,1754881842691,-592.78,0.00021325,2]
[378480149,1754881842699,-460.0,0.00021325,2]
[378480150,1754881842706,-460.0,0.00021325,2]
[378480153,1754881842715,-1794.97,0.00021325,2]
[378480155,1754881842724,-1687.53,0.00021325,2]
[378480156,1754881842732,-460.0,0.00021325,2]
[378480158,1754881842740,-1896.5,0.00021325,2]
[378480160,1754881842748,-519.64,0.00021325,2]
[378480162,1754881842757,-1876.17,0.00021325,2]
[378480164,1754881842766,-460.0,0.00021325,2]
[378480166,1754881842775,-553.4,0.00021325,2]
[378480168,1754881842784,-460.0,0.00021325,2]
[378480170,1754881842793,-460.0,0.00021325,2]
[378480172,1754881842803,-460.0,0.00021325,2]
[378480173,1754881842812,-494.42,0.00021325,2]
[378480174,1754881842822,-538.23,0.00021325,2]
[378480175,1754881842830,-460.0,0.00021325,2]
[378480176,1754881842840,-460.0,0.00021325,2]
[378480177,1754881842849,-506.4979227,0.00021325,2]
[378480178,1754881842858,-460.0,0.00021325,2]
[378480179,1754881842868,-460.0,0.00021325,2]
[378480180,1754881842878,-1238.3,0.00021325,2]
[378480181,1754881842888,-933.05,0.00021325,2]
[378480182,1754881842898,-1354.91,0.00021326,2]
[378480183,1754881842908,-752.06,0.00021326,2]
[378480184,1754881842918,-460.0,0.00021326,2]
[378480185,1754881842928,-460.0,0.00021326,2]
[378480187,1754881842937,-1674.58,0.00021326,2]
[378480189,1754881842947,-1819.13,0.00021326,2]
[378480191,1754881842956,-1120.83178056,0.00021376,2]
[378480193,1754881842965,-8777.07909859,0.00021497,2]
[378480195,1754881842975,-875.5,0.00021525,2]
[378480197,1754881842984,-193.47361034,0.00021534,2]
[378480199,1754881842993,-1000.0,0.00021534,2]
[378480201,1754881843003,-1000.0,0.00021558,2]
[378480203,1754881843012,-1000.0,0.00021563,2]
[378480205,1754881843023,-612.23277963,0.00021563,2]
[378480207,1754881843032,-1005.63184088,0.00021582,2]
[378480209,1754881843041,-524.43610944,0.00021597,2]
[378480210,1754881843050,-460.0,0.00021597,2]
[378480211,1754881843060,-758.29,0.00021597,2]
[378480213,1754881843070,-460.0,0.00021597,2]
[378480216,1754881843080,-460.0,0.00021597,2]
[378480218,1754881843092,-935.8,0.00021597,2]
[378480219,1754881843101,-460.0,0.00021597,2]
[378480221,1754881843110,-937.38,0.00021597,2]
[378480223,1754881843120,-460.0,0.00021597,2]
[378480225,1754881843129,-460.0,0.00021597,2]
[378480227,1754881843138,-559.56,0.00021597,2]
[378480229,1754881843148,-460.0,0.00021597,2]
[378480231,1754881843158,-744.32,0.00021598,2]
[378480233,1754881843168,-460.0,0.00021598,2]
[378480235,1754881843178,-1002.6,0.00021598,2]
[378480237,1754881843188,-1751.23,0.00021598,2]
[378480239,1754881843200,-779.44,0.00021598,2]
[378480241,1754881843209,-460.0,0.00021599,2]
[378480243,1754881843218,-460.0,0.00021599,2]
[378480245,1754881843230,-760.0,0.00021599,2]
[378480247,1754881843240,-2521.29,0.00021599,2]
[378480249,1754881843249,-592.78,0.00021599,2]
[378480251,1754881843258,-460.0,0.00021599,2]
[378480253,1754881843267,-460.0,0.00021599,2]
[378480255,1754881843279,-1794.97,0.00021599,2]
[378480257,1754881843288,-1687.53,0.00021599,2]
[378480259,1754881843297,-460.0,0.00021599,2]
[378480261,1754881843306,-1896.5,0.00021599,2]
[378480263,1754881843316,-519.64,0.00021599,2]
[378480266,1754881843326,-1876.17,0.00021599,2]
[378480269,1754881843336,-460.0,0.00021599,2]
[378480271,1754881843345,-553.4,0.00021599,2]
[378480273,1754881843354,-460.0,0.00021599,2]
[378480275,1754881843364,-460.0,0.00021599,2]
[378480277,1754881843374,-460.0,0.00021599,2]
[378480279,1754881843384,-494.42,0.00021599,2]
[378480281,1754881843393,-538.23,0.00021599,2]
[378480283,1754881843403,-460.0,0.00021599,2]
[378480285,1754881843412,-599.14362892,0.00021599,2]
[378480287,1754881843422,-460.0,0.00021599,2]
[378480289,1754881843434,-460.0,0.00021599,2]
[378480291,1754881843443,-1238.3,0.00021599,2]
[378480293,1754881843452,-933.05,0.00021599,2]
[378480295,1754881843463,-1354.91,0.000216,2]
[378480297,1754881843472,-752.06,0.000216,2]
[378480299,1754881843483,-460.0,0.000216,2]
[378480301,1754881843492,-460.0,0.000216,2]
[378480303,1754881843501,-1674.58,0.000216,2]
[378480305,1754881843511,-1819.13,0.000216,2]
[378480307,1754881843520,-2018.80220263,0.00021601,2]
[378480308,1754881843529,-4537.76265096,0.00021601,2]
[378480310,1754881843538,-831.3413429,0.00021601,2]
[378480312,1754881843547,-3322.04000623,0.00021601,2]
[378480314,1754881843556,-181.63860008,0.00021601,2]
[378480316,1754881843565,-726.55440031,0.00021601,2]
[378480318,1754881843575,-1634.7474007,0.00021601,2]
[378480320,1754881843584,-2906.21760125,0.00021601,2]
[378480322,1754881843593,-4540.96500195,0.00021601,2]
[378480324,1754881843603,-6538.98960281,0.00021601,2]
[378480326,1754881843612,-8891.39111243,0.00021601,2]
[378480328,1754881843621,-298.51931801,0.00021601,2]
[378480330,1754881843630,-1194.07727203,0.00021601,2]
[378480332,1754881843640,-2686.67386206,0.00021601,2]
[378480334,1754881843649,-4776.30908811,0.00021601,2]
[378480336,1754881843659,-7455.51996722,0.00021601,2]
[378480338,1754881843669,-3282.93878066,0.00021655,2]
[378480340,1754881843678,-1000.0,0.0002166,2]
[378480342,1754881843687,-18502.69577858,0.00021677,2]
[378480343,1754881843696,-151.0,0.00021677,2]
[378480345,1754881843705,-151.0,0.00021677,2]
[378480347,1754881843715,-151.0,0.00021677,2]
[378480349,1754881843725,-151.0,0.00021677,2]
[378480351,1754881843734,-151.0,0.00021677,2]
[378480353,1754881843744,-151.0,0.00021677,2]
[378480355,1754881843753,-151.0,0.00021677,2]
[378480357,1754881843762,-151.0,0.00021677,2]
[378480359,1754881843771,-151.0,0.00021677,2]
[378480361,1754881843781,-2183.31810187,0.00021677,2]
[378480363,1754881843790,-151.0,0.00021677,2]
[378480365,1754881843799,-151.0,0.00021677,2]
[378480367,1754881843808,-151.0,0.00021677,2]
[378480369,1754881843817,-151.0,0.00021677,2]
[378480370,1754881843827,-151.0,0.00021677,2]
[378480373,1754881843836,-151.0,0.00021677,2]
[378480374,1754881843847,-151.0,0.00021677,2]
[378480377,1754881843855,-151.0,0.00021677,2]
[378480379,1754881843864,-151.0,0.00021677,2]
[378480381,1754881843874,-803.2421417,0.00021688,2]
[378480383,1754881843883,-501.99732496,0.00021694,2]
[378480385,1754881843892,-222.98514111,0.00021726,5]
[378480387,1754881843902,-1359.0,0.00021728,2]
[378480389,1754881843911,-2264.10087164,0.00021732,2]
[378480391,1754881843920,-260.0,0.00021783,2]
[378480393,1754881843930,-995.72463485,0.00021787,2]
[378480395,1754881843939,-875.5,0.00021832,2]
[378480397,1754881843949,-460.0,0.00021871,2]
[378480399,1754881843957,-758.29,0.00021871,2]
[378480401,1754881843967,-460.0,0.00021871,2]
[378480402,1754881843976,-460.0,0.00021871,2]
[378480404,1754881843985,-935.8,0.00021871,2]
[378480406,1754881843995,-460.0,0.00021871,2]
[378480408,1754881844006,-937.38,0.00021871,2]
[378480410,1754881844016,-460.0,0.00021871,2]
[378480412,1754881844026,-460.0,0.00021871,2]
[378480414,1754881844035,-559.56,0.00021871,2]
[378480416,1754881844045,-460.0,0.00021871,2]
[378480417,1754881844054,-744.32,0.00021872,2]
[378480419,1754881844064,-460.0,0.00021872,2]
[378480421,1754881844074,-1002.6,0.00021872,2]
[378480423,1754881844084,-1751.23,0.00021872,2]
[378480425,1754881844094,-779.44,0.00021872,2]
[378480427,1754881844105,-460.0,0.00021873,2]
[378480440,1754881844244,-460.0,0.00021873,2]
[378480442,1754881844255,-760.0,0.00021873,2]
[378480444,1754881844265,-2521.29,0.00021873,2]
[378480446,1754881844275,-592.78,0.00021873,2]
[378480448,1754881844286,-460.0,0.00021873,2]
[378480450,1754881844295,-460.0,0.00021873,2]
[378480452,1754881844304,-1794.97,0.00021873,2]
[378480454,1754881844314,-1687.53,0.00021873,2]
[378480456,1754881844324,-559.56548075,0.00021873,2]
[378480458,1754881844333,-1896.5,0.00021873,2]
[378480459,1754881844342,-519.64,0.00021873,2]
[378480461,1754881844351,-1876.17,0.00021873,2]
[378480463,1754881844360,-460.0,0.00021873,2]
[378480465,1754881844370,-553.4,0.00021873,2]
[378480467,1754881844380,-460.0,0.00021873,2]
[378480469,1754881844389,-460.0,0.00021873,2]
[378480471,1754881844398,-460.0,0.00021873,2]
[378480473,1754881844408,-494.42,0.00021873,2]
[378480475,1754881844418,-538.23,0.00021873,2]
[378480477,1754881844427,-460.0,0.00021873,2]
[378480479,1754881844436,-460.0,0.00021873,2]
[378480481,1754881844445,-460.0,0.00021873,2]
[378480482,1754881844454,-1238.3,0.00021873,2]
[378480484,1754881844464,-933.05,0.00021873,2]
[378480486,1754881844474,-1354.91,0.00021874,2]
[378480488,1754881844485,-752.06,0.00021874,2]
[378480490,1754881844494,-460.0,0.00021874,2]
[378480492,1754881844504,-460.0,0.00021874,2]
[378480494,1754881844514,-1674.58,0.00021874,2]
[378480496,1754881844523,-1819.13,0.00021874,2]
[378480498,1754881844533,-500.0,0.00021917,2]
[378480500,1754881844542,-500.0,0.00021917,2]
[378480502,1754881844551,-504.71768055,0.00021917,2]
[378480504,1754881844560,-7840.94,0.00021917,2]
[378480506,1754881844570,-106.78951283,0.00022,2]
[378480533,1754881844834,-460.0,0.00019955,2]
[378480535,1754881844845,-59.54000514,0.00020229,2]
[378480551,1754881845004,430.89708219,0.00019953,2]